Workbook

Sheet Blad1
H2: Gewichten eerste 3 weken
F3: Cattery | H3: Chan rak kun
B5: Moeder | C5: Naam | H5: Ras | I5: Traditionele Siamees | M5: Vader | N5: Naam
C6: Stamb. | H6: Type | I6: <-- Tortie | K6: Lilac --> | N6: Stamb
H9: Geboortenotities
C10: Datum | D10: Tijdstip | E10: Gebeurtenis | H10: Placenta meegekomen | J10: Geboorte- gewicht | L10: Kenmerk/ kleur | N10: Gedrag kitten | Q10: Geslacht | R10: Naam
C11: 2021-07-07 | D11: 11:30:00 | E11: 1e Persweeën
C12: 2021-07-07 | D12: 11:40:00 | E12: Geboorte 1e kitten | H12: Ja | J12: 88 | L12: rood | N12: Levendig | Q12: v | R12: Lotje
C13: 2021-07-07 | D13: 11:45:00 | E13: Geboorte 2e kitten | H13: Ja | L13: blauw | N13: Dood geboren | Q13: m | R13: Pim
C14: 2021-07-07 | D14: 11:50:00 | E14: Geboorte 3e kitten | H14: Ja | J14: 109 | L14: groen | N14: Levendig | Q14: m | R14: Herman
C15: 2021-07-07 | D15: 11:55:00 | E15: Geboorte 4e kitten | H15: Ja | J15: 95 | L15: geel | N15: Levendig | Q15: v | R15: Mimi
C16: 2021-07-08 | D16: 00:05:00 | E16: Geboorte 5e kitten | H16: Ja | J16: 90 | L16: zwart | N16: Levendig | Q16: v | R16: Doortje
E17: Geboorte 6e kitten | Q17: v
E18: Dierenarts raadplegen wanneer:
E19: - er binnen 1 uur na de eerste perswee en ondanks hevige weeën nog steeds geen (eerste) kitten geboren is.
E20: - de weeën ophouden, terwijl de poes onrustig blijft
E21: - moeder lang achtereen vruchteloos perst zonder dat er een (volgende) kitten verschijnt
E22: - moeder plots apathisch of paniekerig wordt
E23: Na de bevalling vragen of hij langs wil komen om de kittens en moeder na te kijken en eventueel een oxytocine-injectie te geven.
O26: Knop voor afsluiten -->
G29: Gewicht per dag (in grammen)
D30: Datum | E30: =CONCATENATE("Kitten 1 (",L12,")") -> Kitten 1 (rood) | G30: =CONCATENATE("Kitten 2 (",L13,")") -> Kitten 2 (blauw) | I30: =CONCATENATE("Kitten 3 (",L14,")") -> Kitten 3 (groen) | K30: =CONCATENATE("Kitten 4 (",L15,")") -> Kitten 4 (geel) | M30: =CONCATENATE("Kitten 5 (",L16,")") -> Kitten 5 (zwart) | O30: =CONCATENATE("Kitten 6 (",L17,")") -> Kitten 6 () | Q30: Opmerkingen
E31: Gewicht | F31: 10%* | G31: Gewicht | H31: 10%* | I31: Gewicht | J31: 10%* | K31: Gewicht | L31: 10%* | M31: Gewicht | N31: 10%* | O31: Gewicht | P31: 10%*
C32: Geboren | D32: =IF(C11="",0,C11) -> 2021-07-07 | E32: =IF(D32=C12,J12,"") -> 88 | G32: =IF(D32=C13,J13,"") -> 0 | I32: =IF(D32=C14,J14,"-") -> 109 | K32: =IF(D32=C15,J15,"-") -> 95 | M32: =IF(D32=C16,J16,"-") -> - | O32: =IF(D32=C17,J17,"-") -> -
C33: Geboren | D33: =D100 -> 2021-07-08 | E33: =IF(D32=C12,"-",J12) -> - | G33: =IF(D32=C13,"-",J13) -> - | I33: =IF(D32=C14,"-",J14) -> - | K33: =IF(D32=C15,"-",J15) -> - | M33: =IF(D32=C16,"-",J16) -> 90 | O33: =IF(D32=C17,"-",J17) -> 0
C34: 1e week -> gewichtstoename minimaal 10% per dag | D34: =D33+1 -> 2021-07-09 | E34: 101 | F34: =IF(ISNUMBER(E34),(E34-E202)-(0.1*E202),"-") -> 4.2 | H34: =IF(ISNUMBER(G34),(G34-F202)-(0.1*F202),"-") -> - | I34: 133 | J34: =IF(ISNUMBER(I34),(I34-G202)-(0.1*G202),"-") -> 13.1 | K34: 111 | L34: =IF(ISNUMBER(K34),(K34-H202)-(0.1*H202),"-") -> 6.5 | M34: 108 | N34: =IF(ISNUMBER(M34),(M34-I202)-(0.1*I202),"-") -> 9 | P34: =IF(ISNUMBER(O34),(O34-J202)-(0.1*J202),"-") -> -
D35: =D34+1 -> 2021-07-10 | E35: 128 | F35: 16.9 | H35: =IF(ISNUMBER(G35),(G35-F203)-(0.1*F203),"-") -> - | I35: 149 | J35: =IF(ISNUMBER(I35),(I35-G203)-(0.1*G203),"-") -> 2.7 | K35: 131 | L35: =IF(ISNUMBER(K35),(K35-H203)-(0.1*H203),"-") -> 8.9 | M35: 126 | N35: =IF(ISNUMBER(M35),(M35-I203)-(0.1*I203),"-") -> 7.2 | P35: =IF(ISNUMBER(O35),(O35-J203)-(0.1*J203),"-") -> -
D36: =D35+1 -> 2021-07-11 | E36: 143 | F36: 2.2 | H36: =IF(ISNUMBER(G36),(G36-F204)-(0.1*F204),"-") -> - | I36: 176 | J36: 12.1 | K36: 148 | L36: 3.9 | M36: 150 | N36: 11.4 | P36: -
D37: 2021-07-12 | E37: 162 | F37: 4.7 | H37: =IF(ISNUMBER(G37),(G37-F205)-(0.1*F205),"-") -> - | I37: 196 | J37: 2.4 | K37: 167 | L37: 4.2 | M37: 165 | N37: 0 | P37: -
D38: 2021-07-13 | E38: 184 | F38: 5.8 | H38: =IF(ISNUMBER(G38),(G38-F206)-(0.1*F206),"-") -> - | I38: 216 | J38: 0.4 | K38: 184 | L38: 0.3 | M38: 179 | N38: -2.5 | P38: - | Q38: kitten1 - ogen open
D39: 2021-07-14 | E39: 198 | F39: -4.4 | H39: - | I39: 230 | J39: -7.6 | K39: 203 | L39: 0.6 | M39: 200 | N39: 3.1 | P39: - | Q39: kitten2 - ogen open
D40: 2021-07-15 | E40: 210 | F40: -7.8 | H40: - | I40: 246 | J40: -7 | K40: 221 | L40: =IF(ISNUMBER(K40),(K40-H208)-(0.1*H208),"-") -> -2.3 | M40: 225 | N40: 5 | P40: - | Q40: kitten 3 en kitten 4 - ogen open
C41: 2e week -> gewichtstoename minimaal 10g/dag | D41: 2021-07-16 | E41: 223 | F41: =IF(ISNUMBER(E41),(E41-E209)-10,"-") -> 3 | H41: =IF(ISNUMBER(G41),(G41-F209)-10,"-") -> - | I41: 264 | J41: =IF(ISNUMBER(I41),(I41-G209)-10,"-") -> 8 | K41: 235 | L41: =IF(ISNUMBER(K41),(K41-H209)-10,"-") -> 4 | M41: 232 | N41: =IF(ISNUMBER(M41),(M41-I209)-10,"-") -> -3 | P41: =IF(ISNUMBER(O41),(O41-J209)-10,"-") -> -
D42: 2021-07-17 | E42: 234 | F42: =IF(ISNUMBER(E42),(E42-E210)-10,"-") -> 1 | H42: =IF(ISNUMBER(G42),(G42-F210)-10,"-") -> - | I42: 274 | J42: =IF(ISNUMBER(I42),(I42-G210)-10,"-") -> 0 | K42: 249 | L42: =IF(ISNUMBER(K42),(K42-H210)-10,"-") -> 4 | M42: 243 | N42: =IF(ISNUMBER(M42),(M42-I210)-10,"-") -> 1 | P42: =IF(ISNUMBER(O42),(O42-J210)-10,"-") -> -
D43: 2021-07-18 | E43: 249 | F43: 5 | H43: - | I43: 302 | J43: 18 | K43: 270 | L43: 11 | M43: 261 | N43: 8 | P43: -
D44: 2021-07-19 | E44: 257 | F44: -2 | H44: - | I44: 315 | J44: 3 | K44: 285 | L44: 5 | M44: 275 | N44: 4 | P44: -
D45: 2021-07-20 | E45: 271 | F45: 4 | H45: - | I45: 330 | J45: 5 | K45: 299 | L45: 4 | M45: 287 | N45: 2 | P45: -
D46: 2021-07-21 | E46: 282 | F46: 1 | H46: - | I46: 331 | J46: -9 | K46: 308 | L46: -1 | M46: 299 | N46: 2 | P46: - | Q46: worden nieuwsgierig
D47: 2021-07-22 | E47: 296 | F47: 4 | H47: - | I47: 358 | J47: 17 | K47: 324 | L47: 6 | M47: 315 | N47: 6 | P47: - | Q47: spelen met elkaar
C48: 3e week -> Gewichtstoename minimaal 13g/dag | D48: 2021-07-23 | E48: 306 | F48: =IF(ISNUMBER(E48),(E48-E216)-13,"-") -> -3 | H48: =IF(ISNUMBER(G48),(G48-F216)-13,"-") -> - | I48: 368 | J48: =IF(ISNUMBER(I48),(I48-G216)-13,"-") -> -3 | K48: 340 | L48: =IF(ISNUMBER(K48),(K48-H216)-13,"-") -> 3 | M48: 322 | N48: =IF(ISNUMBER(M48),(M48-I216)-13,"-") -> -6 | P48: =IF(ISNUMBER(O48),(O48-J216)-13,"-") -> - | Q48: komen naar je toe
D49: 2021-07-24 | E49: 320 | F49: 1 | H49: - | I49: 387 | J49: 6 | K49: 350 | L49: -3 | M49: 338 | N49: 3 | P49: -
D50: 2021-07-25 | E50: 331 | F50: -2 | H50: - | I50: 401 | J50: 1 | K50: 361 | L50: -2 | M50: 348 | N50: -3 | P50: -
D51: 2021-07-26 | E51: 348 | F51: 4 | H51: - | I51: 425 | J51: 11 | K51: 386 | L51: 12 | M51: 361 | N51: 0 | P51: -
D52: 2021-07-27 | E52: 365 | F52: 4 | H52: - | I52: 435 | J52: -3 | K52: 397 | L52: -2 | M52: 382 | N52: 8 | P52: - | W52: Wanneer een kitten met zijn groeilijn veelvuldig onder de gele trendlijn komt --> dierenarts raadplegen
D53: 2021-07-28 | E53: 375 | F53: -3 | H53: - | I53: 450 | J53: 2 | K53: 415 | L53: 5 | N53: - | P53: -
D54: 2021-07-29 | E54: 388 | F54: 0 | H54: - | I54: 460 | J54: -3 | K54: 432 | L54: 4 | N54: - | P54: -
B55: Gem. toename per dag | E55: =G102 -> 14.3 | G55: =H102 -> 0 | I55: =I102 -> 16.7 | K55: =J102 -> 16 | M55: =K102 -> 15.4 | O55: =L102 -> 0
B56: Gewichtstoename 1e week | E56: =G103-E202 -> 122 | G56: =H103-F202 -> 0 | I56: =I103-G202 -> 137 | K56: =J103-H202 -> 126 | M56: =K103-I202 -> 135 | O56: =L103-J202 -> 0
B57: Gewichtstoename 2e week | E57: =G104-G103 -> 86 | G57: =H104-H103 -> 0 | I57: =I104-I103 -> 112 | K57: =J104-J103 -> 103 | M57: =K104-K103 -> 90 | O57: =L104-L103 -> 0
B58: Gewichtstoename 3e week | E58: =G105-G104 -> 92 | G58: =H105-H104 -> 0 | I58: =I105-I104 -> 102 | K58: =J105-J104 -> 108 | M58: =K105-K104 -> 67 | O58: =L105-L104 -> 0
B59: LG = Lichaamsgewicht
B60: 10%*= | C60: 1e week -> | D60: (LG v/d dag - LG voorgaande dag) - 10% LG voorgaande dag | L60: Dit is de gewichtstoename dat boven de norm van 10% gewichtstoename ligt
C61: 2e week -> | D61: (LG v/d dag - LG voorgaande dag) - 10 gram | L61: Dit is de gewichtstoename dat boven de norm van 10 gram per dag ligt
C62: 3e week -> | D62: (LG v/d dag - LG voorgaande dag) -13 gram | L62: Dit is de gewichtstoename dat boven de norm van 13 gram per dag ligt
B64: In de eerste levensweek moeten de kittens elke dag ongeveer 10% van hun LG zijn aangekomen.
B65: In de 2e week moeten de kittens minimaal 70 gram zijn aangekomen.
B66: In de 3e week moeten de kittens minimaal 90 gram zijn aangekomen.
B67: In de kolommen 10%* --> Een positief getal betekend dat een kitten boven de gestelde norm zit.
B68: In de kolommen 10%* --> Een negatief getal betekend dat een kitten onder de gestelde norm zit.
B70: Aantekeningen
B72: Kitten 1 -> Tortie Kitten3 -> Chocolatepoint Kitten 4 -> Chocolatepoint Kitten 5 -> Seal point
G98: Aantal dagen
G99: K 1 | H99: K2 | I99: K3 | J99: K4 | K99: K5 | L99: K6
A100: Kleinste datum | C100: =MIN(C11:C17) -> 2021-07-07 | D100: =IF(C101=C100,C100,C101) -> 2021-07-08 | G100: =COUNT(E34:E54) -> 21 | H100: =COUNT(G34:G54) -> 0 | I100: =COUNT(I34:I54) -> 21 | J100: =COUNT(K34:K54) -> 21 | K100: =COUNT(M34:M54) -> 19 | L100: =COUNT(O34:O54) -> 0 | M100: Aantal ingevulde dagen
A101: Grootste datum | C101: =MAX(C11:C17) -> 2021-07-08 | G101: =OFFSET($T$202,COUNTA(T202:T223)*1,0) -> 13 | H101: =OFFSET($U$202,COUNTA(U202:U223)*1,0) -> 0 | I101: =OFFSET($V$202,COUNTA(V202:V223)*1,0) -> 10 | J101: =OFFSET($W$202,COUNTA(W202:W223)*1,0) -> 17 | K101: =OFFSET($W$202,COUNTA(W202:W223)*1,0) -> 17 | L101: =OFFSET($Y$202,COUNTA(Y202:Y223)*1,0) -> 0 | M101: Laatse ingevuld gewichtstoename
G102: =IF(G100=0,"0",ROUND((T224/G100),1)) -> 14.3 | H102: =IF(H100=0,"0",ROUND((U224/H100),1)) -> 0 | I102: =IF(I100=0,"0",ROUND((V224/I100),1)) -> 16.7 | J102: =IF(J100=0,"0",ROUND((W224/J100),1)) -> 16 | K102: =IF(K100=0,"0",ROUND((X224/K100),1)) -> 15.4 | L102: =IF(L100=0,0,ROUND((Y224/L100),1)) -> 0 | M102: Gemiddeld gewichtstoename
G103: =OFFSET($E$202,COUNTA(E203:E209)*1,0) -> 210 | H103: =OFFSET($F$202,COUNTA(F203:F209)*1,0) -> 0 | I103: =OFFSET($G$202,COUNTA(G203:G209)*1,0) -> 246 | J103: =OFFSET($H$202,COUNTA(H203:H209)*1,0) -> 221 | K103: =OFFSET($I$202,COUNTA(I203:I209)*1,0) -> 225 | L103: =OFFSET($J$202,COUNTA(J203:J209)*1,0) -> 0 | M103: Laatse ingevuld gewicht - week1
G104: =OFFSET($E$209,COUNTA(E210:E216)*1,0) -> 296 | H104: =OFFSET($F$209,COUNTA(F210:F216)*1,0) -> 0 | I104: =OFFSET($G$209,COUNTA(G210:G216)*1,0) -> 358 | J104: =OFFSET($H$209,COUNTA(H210:H216)*1,0) -> 324 | K104: =OFFSET($I$209,COUNTA(I210:I216)*1,0) -> 315 | L104: =OFFSET($J$209,COUNTA(J210:J216)*1,0) -> 0 | M104: Laatse ingevuld gewicht - week2
G105: =OFFSET($E$202,COUNTA(E203:E223)*1,0) -> 388 | H105: =OFFSET($F$202,COUNTA(F203:F223)*1,0) -> 0 | I105: =OFFSET($G$202,COUNTA(G203:G223)*1,0) -> 460 | J105: =OFFSET($H$202,COUNTA(H203:H223)*1,0) -> 432 | K105: =OFFSET($I$202,COUNTA(I203:I223)*1,0) -> 382 | L105: =OFFSET($J$202,COUNTA(J203:J223)*1,0) -> 0 | M105: Laatse ingevuld gewicht - week3
D199: Gewicht | T199: Gewichtstoename
D200: Datum | E200: Kitten 1 | F200: Kitten 2 | G200: Kitten 3 | H200: Kitten 4 | I200: Kitten 5 | J200: Kitten 6 | K200: Trend | L200: k 1 | M200: k2 | N200: k3 | O200: k4 | P200: k5 | Q200: k6 | T200: k1 | U200: k2 | V200: k3 | W200: k4 | X200: k5 | Y200: k6
D201: =D32 -> 2021-07-07 | E201: =E32 -> 88 | F201: =G32 -> 0 | G201: =I32 -> 109 | H201: =K32 -> 95 | I201: =M32 -> - | J201: =O32 -> - | K201: 85 | L201: =IF(ISNUMBER(E33),E33,0) -> 0 | M201: =IF(ISNUMBER(G33),G33,0) -> 0 | N201: =IF(ISNUMBER(I33),I33,0) -> 0 | O201: =IF(ISNUMBER(K33),K33,0) -> 0 | P201: =IF(ISNUMBER(M33),M33,0) -> 90 | Q201: =IF(ISNUMBER(O33),O33,0) -> 0 | S201: =D201 -> 2021-07-07
D202: =D33 -> 2021-07-08 | E202: =IF(ISNUMBER(E201),E201,L201) -> 88 | F202: 0 | G202: 109 | H202: 95 | I202: 90 | J202: 0 | K202: 89 | S202: =D202 -> 2021-07-08
D203: =D34 -> 2021-07-09 | E203: =IF(ISNUMBER(E34),E34,E202) -> 101 | F203: =IF(ISNUMBER(G34),G34,F202) -> 0 | G203: =IF(ISNUMBER(I34),I34,G202) -> 133 | H203: =IF(ISNUMBER(K34),K34,H202) -> 111 | I203: =IF(ISNUMBER(M34),M34,I202) -> 108 | J203: =IF(ISNUMBER(O34),O34,J202) -> 0 | K203: 99 | S203: 2021-07-09 | T203: =E203-E202 -> 13 | U203: 0 | V203: 24 | W203: 16 | X203: 18 | Y203: 0
D204: =D35 -> 2021-07-10 | E204: =IF(ISNUMBER(E35),E35,E203) -> 128 | F204: =IF(ISNUMBER(G35),G35,F203) -> 0 | G204: =IF(ISNUMBER(I35),I35,G203) -> 149 | H204: =IF(ISNUMBER(K35),K35,H203) -> 131 | I204: =IF(ISNUMBER(M35),M35,I203) -> 126 | J204: =IF(ISNUMBER(O35),O35,J203) -> 0 | K204: 114 | S204: 2021-07-10 | T204: =E204-E203 -> 27 | U204: =F204-F203 -> 0 | V204: =G204-G203 -> 16 | W204: =H204-H203 -> 20 | X204: =I204-I203 -> 18 | Y204: =J204-J203 -> 0
D205: 2021-07-11 | E205: 143 | F205: 0 | G205: 176 | H205: 148 | I205: 150 | J205: 0 | K205: 128 | S205: 2021-07-11 | T205: =E205-E204 -> 15 | U205: 0 | V205: 27 | W205: 17 | X205: 24 | Y205: 0
D206: 2021-07-12 | E206: 162 | F206: 0 | G206: 196 | H206: 167 | I206: 165 | J206: 0 | K206: 142 | S206: 2021-07-12 | T206: 19 | U206: 0 | V206: 20 | W206: 19 | X206: 15 | Y206: 0
D207: 2021-07-13 | E207: 184 | F207: 0 | G207: 216 | H207: 184 | I207: 179 | J207: 0 | K207: 156 | S207: 2021-07-13 | T207: 22 | U207: 0 | V207: 20 | W207: 17 | X207: 14 | Y207: 0
D208: 2021-07-14 | E208: 198 | F208: 0 | G208: 230 | H208: 203 | I208: 200 | J208: 0 | K208: 170 | S208: 2021-07-14 | T208: 14 | U208: 0 | V208: 14 | W208: 19 | X208: 21 | Y208: 0
D209: 2021-07-15 | E209: 210 | F209: 0 | G209: 246 | H209: 221 | I209: 225 | J209: 0 | K209: 184 | S209: 2021-07-15 | T209: 12 | U209: 0 | V209: 16 | W209: 18 | X209: 25 | Y209: 0
D210: 2021-07-16 | E210: 223 | F210: 0 | G210: 264 | H210: 235 | I210: 232 | J210: 0 | K210: 198 | S210: 2021-07-16 | T210: 13 | U210: 0 | V210: 18 | W210: 14 | X210: 7 | Y210: 0
D211: 2021-07-17 | E211: 234 | F211: 0 | G211: 274 | H211: 249 | I211: 243 | J211: 0 | K211: 212 | S211: 2021-07-17 | T211: 11 | U211: 0 | V211: 10 | W211: 14 | X211: 11 | Y211: 0
D212: 2021-07-18 | E212: 249 | F212: 0 | G212: 302 | H212: 270 | I212: 261 | J212: 0 | K212: 226 | S212: 2021-07-18 | T212: 15 | U212: 0 | V212: 28 | W212: 21 | X212: 18 | Y212: 0
D213: 2021-07-19 | E213: 257 | F213: 0 | G213: 315 | H213: 285 | I213: 275 | J213: 0 | K213: 240 | S213: 2021-07-19 | T213: 8 | U213: 0 | V213: 13 | W213: 15 | X213: 14 | Y213: 0
D214: 2021-07-20 | E214: 271 | F214: 0 | G214: 330 | H214: 299 | I214: 287 | J214: 0 | K214: 254 | S214: 2021-07-20 | T214: 14 | U214: 0 | V214: 15 | W214: 14 | X214: 12 | Y214: 0
D215: 2021-07-21 | E215: 282 | F215: 0 | G215: 331 | H215: 308 | I215: 299 | J215: 0 | K215: 268 | S215: 2021-07-21 | T215: 11 | U215: 0 | V215: 1 | W215: 9 | X215: 12 | Y215: 0
D216: 2021-07-22 | E216: 296 | F216: 0 | G216: 358 | H216: 324 | I216: 315 | J216: 0 | K216: 282 | S216: 2021-07-22 | T216: 14 | U216: 0 | V216: 27 | W216: 16 | X216: 16 | Y216: 0
D217: 2021-07-23 | E217: 306 | F217: 0 | G217: 368 | H217: 340 | I217: 322 | J217: 0 | K217: 296 | S217: 2021-07-23 | T217: 10 | U217: 0 | V217: 10 | W217: 16 | X217: 7 | Y217: 0
D218: 2021-07-24 | E218: 320 | F218: 0 | G218: 387 | H218: 350 | I218: 338 | J218: 0 | K218: 310 | S218: 2021-07-24 | T218: 14 | U218: 0 | V218: 19 | W218: 10 | X218: 16 | Y218: 0
D219: 2021-07-25 | E219: 331 | F219: 0 | G219: 401 | H219: 361 | I219: 348 | J219: 0 | K219: 324 | S219: 2021-07-25 | T219: 11 | U219: 0 | V219: 14 | W219: 11 | X219: 10 | Y219: 0
D220: 2021-07-26 | E220: 348 | F220: 0 | G220: 425 | H220: 386 | I220: 361 | J220: 0 | K220: 338 | S220: 2021-07-26 | T220: 17 | U220: 0 | V220: 24 | W220: 25 | X220: 13 | Y220: 0
D221: 2021-07-27 | E221: 365 | F221: 0 | G221: 435 | H221: 397 | I221: 382 | J221: 0 | K221: 352 | S221: 2021-07-27 | T221: 17 | U221: 0 | V221: 10 | W221: 11 | X221: 21 | Y221: 0
D222: 2021-07-28 | E222: 375 | F222: 0 | G222: 450 | H222: 415 | I222: 382 | J222: 0 | K222: 366 | S222: 2021-07-28 | T222: 10 | U222: 0 | V222: 15 | W222: 18 | X222: 0 | Y222: 0
D223: 2021-07-29 | E223: 388 | F223: 0 | G223: 460 | H223: 432 | I223: 382 | J223: 0 | K223: 380 | S223: 2021-07-29 | T223: 13 | U223: 0 | V223: 10 | W223: 17 | X223: 0 | Y223: 0
T224: =SUM(T203:T223) -> 300 | U224: 0 | V224: 351 | W224: 337 | X224: 292 | Y224: 0
